bitfinex/quotes_BTCUSD_20220105
["timestamp","ask_amount","ask_price","bid_price","bid_amount"]
[1641345281983,0.05517515,46331.0,46330.0,0.91096207]
[1641345282987,0.05517515,46331.0,46330.0,0.87696207]
[1641345283185,0.05517515,46331.0,46330.0,0.52129707]
[1641345283786,0.05517515,46331.0,46330.0,1.10884734]
[1641345283987,0.05517515,46331.0,46330.0,0.90896207]
[1641345284626,0.10517515,46331.0,46330.0,0.90896207]
[1641345284828,0.05517515,46331.0,46330.0,0.90896207]
[1641345285032,0.05517515,46331.0,46330.0,0.87696207]
[1641345285232,0.05517515,46331.0,46330.0,0.52129707]
[1641345285432,0.10517515,46331.0,46330.0,0.00129707]
[1641345285828,0.10517515,46331.0,46330.0,0.07529707]
[1641345286028,0.05517515,46331.0,46330.0,0.07529707]
[1641345286731,0.10357515,46331.0,46330.0,0.074]
[1641345286929,0.13849494,46331.0,46324.0,0.32531519]
[1641345287129,0.15357515,46331.0,46324.0,0.32531519]
[1641345287327,0.0551,46328.0,46324.0,0.32531519]
[1641345287528,0.0551,46328.0,46324.0,0.01245478]
[1641345287529,0.0551,46326.0,46324.0,0.01245478]
[1641345287728,0.05,46328.0,46324.0,0.06545478]
[1641345287729,0.1035,46325.0,46324.0,0.06545478]
[1641345288185,0.1535,46325.0,46324.0,0.053]
[1641345288379,0.1535,46325.0,46324.0,0.493]
[1641345288681,0.207492,46325.0,46324.0,0.053]
[1641345289079,0.207492,46325.0,46322.0,0.00127727]
[1641345289681,0.207492,46325.0,46323.0,0.33673347]
[1641345289881,0.208492,46325.0,46323.0,0.33673347]
[1641345290083,0.0551,46324.0,46323.0,0.33673347]
[1641345290284,0.1035,46324.0,46323.0,0.33673347]
[1641345290483,0.1035,46324.0,46323.0,1.30239847]
[1641345291484,0.0985,46324.0,46323.0,1.21239847]
[1641345291842,0.0985,46324.0,46323.0,0.72039847]
[1641345292039,0.0985,46324.0,46323.0,0.77438421]
[1641345293041,0.0985,46324.0,46323.0,0.74638505]
[1641345293442,0.1485,46324.0,46323.0,0.74638505]
[1641345293842,0.1485,46324.0,46323.0,0.78838505]
[1641345294243,0.1485,46324.0,46323.0,0.73439847]
[1641345294442,0.1485,46324.0,46323.0,1.96838746]
[1641345294643,0.0985,46324.0,46323.0,1.96838746]
[1641345295042,0.0501,46324.0,46323.0,1.92638746]
[1641345295443,0.0501,46324.0,46323.0,1.92759302]
[1641345295885,0.0501,46324.0,46323.0,3.10559302]
[1641345296083,0.0501,46324.0,46323.0,1.95459302]
[1641345296481,0.0501,46324.0,46323.0,0.92459302]
[1641345297181,0.0501,46324.0,46323.0,0.89759302]
[1641345297382,0.0501,46324.0,46323.0,1.59759302]
[1641345297682,0.0501,46324.0,46323.0,0.89759302]
[1641345297882,0.05016922,46324.0,46323.0,0.92859302]
[1641345298387,0.05016922,46324.0,46323.0,1.52859302]
[1641345298981,0.05016922,46324.0,46323.0,1.49759302]
[1641345299431,0.05016922,46324.0,46323.0,1.29360403]
[1641345299635,0.05016922,46324.0,46323.0,0.69360403]
[1641345299830,0.05016922,46324.0,46323.0,0.72360403]
[1641345300233,0.05016922,46324.0,46323.0,1.05360403]
[1641345301133,0.05016922,46324.0,46323.0,1.02360403]
[1641345301330,0.05016922,46324.0,46323.0,1.79360403]
[1641345301831,0.05016922,46324.0,46323.0,1.82460403]
[1641345302332,0.05016922,46324.0,46323.0,2.26460403]
[1641345302533,0.05016922,46324.0,46323.0,1.82460403]
[1641345303177,0.05016922,46324.0,46323.0,1.79360403]
[1641345303375,0.05016922,46324.0,46323.0,1.02360403]
[1641345303578,0.05016922,46324.0,46323.0,0.68687056]
[1641345303774,0.05016922,46324.0,46323.0,0.70687056]
[1641345304675,0.05016922,46324.0,46323.0,0.37687056]
[1641345304875,0.35323526,46324.0,46323.0,0.02120556]
[1641345305076,0.35323526,46324.0,46321.0,0.42]
[1641345305274,0.0501,46322.0,46321.0,0.42]
[1641345305474,0.0985,46322.0,46321.0,0.42]
[1641345305774,0.0985,46322.0,46321.0,0.791665]
[1641345305775,0.1045,46322.0,46321.0,0.791665]
[1641345306179,0.1045,46322.0,46321.0,0.436]
[1641345306180,0.1545,46322.0,46321.0,0.436]
[1641345306575,0.35949928,46322.0,46321.0,0.436]
[1641345307227,0.35349928,46322.0,46321.0,0.42]
[1641345307431,0.61512286,46322.0,46321.0,0.42]
[1641345307627,0.41012358,46322.0,46321.0,0.42]
[1641345307827,0.63387014,46322.0,46321.0,0.46]
[1641345308029,0.62433479,46322.0,46321.0,0.46]
[1641345308328,0.99214472,46322.0,46321.0,0.46]
[1641345308928,0.98614472,46322.0,46321.0,0.42]
[1641345309329,0.64405447,46322.0,46321.0,0.42]
[1641345309531,0.66620614,46322.0,46321.0,0.42]
[1641345309729,0.67420614,46322.0,46321.0,0.454]
[1641345310329,0.45645958,46322.0,46321.0,0.454]
[1641345310779,1.0541167,46322.0,46321.0,0.454]
[1641345310982,1.0541167,46322.0,46320.0,14.93336738]
[1641345310983,1.55823324,46322.0,46320.0,14.93336738]
[1641345311184,1.279409,46321.0,46320.0,14.93336738]
[1641345311386,1.279409,46321.0,46320.0,14.50126038]
[1641345311387,1.327809,46321.0,46320.0,14.50126038]
[1641345311582,1.877809,46321.0,46320.0,14.50126038]
[1641345311779,2.76821789,46321.0,46320.0,11.40418661]
[1641345311981,2.76821789,46321.0,46320.0,10.97204061]
[1641345312179,4.02913517,46321.0,46320.0,10.97204061]
[1641345312479,4.53637799,46321.0,46320.0,9.67552461]
[1641345312880,4.53637799,46321.0,46320.0,9.24337061]
[1641345313081,4.52337799,46321.0,46320.0,8.70323661]
[1641345313480,4.52337799,46321.0,46320.0,8.27109061]
[1641345313682,2.24237799,46321.0,46320.0,7.83893761]
[1641345313888,2.25216071,46321.0,46320.0,7.83893761]
[1641345314326,2.35216071,46321.0,46320.0,7.40680061]
[1641345314726,2.39646405,46321.0,46320.0,7.40680061]
[1641345314926,3.24646405,46321.0,46320.0,6.97464961]
[1641345315129,3.65314576,46321.0,46320.0,6.54247561]
[1641345315326,3.65314576,46321.0,46320.0,6.11031761]
[1641345315327,5.22544012,46321.0,46320.0,6.11031761]
[1641345315526,5.56472512,46321.0,46320.0,6.11031761]
[1641345315730,5.56472512,46321.0,46320.0,4.50841072]
[1641345315731,5.43111415,46321.0,46320.0,4.50841072]
[1641345315929,6.86061615,46321.0,46320.0,3.85968776]
[1641345316128,8.06264723,46321.0,46320.0,3.42743876]
[1641345316328,7.95458123,46321.0,46320.0,2.56294041]
[1641345316633,8.27878223,46321.0,46320.0,1.91553602]
[1641345316828,7.75568223,46321.0,46320.0,0.6179699]
[1641345317032,7.75568223,46321.0,46315.0,0.01245606]
[1641345317033,1.7488,46316.0,46315.0,0.01245606]
[1641345317229,5.17091712,46316.0,46315.0,0.01245606]
[1641345317429,6.42315879,46316.0,46315.0,0.01245606]
[1641345317629,6.42315879,46316.0,46296.0,0.2504656]
[1641345317630,0.0501,46304.0,46296.0,0.2504656]
[1641345317830,0.0501,46301.0,46294.0,0.2504656]
[1641345318083,0.0501,46299.0,46294.0,0.24520649]
[1641345318282,0.0501,46299.0,46298.0,2.13808684]
[1641345318483,0.0501,46299.0,46298.0,2.49496003]
[1641345318880,0.0504918,46299.0,46298.0,2.49496003]
[1641345319082,0.0504918,46299.0,46298.0,2.87147968]
[1641345319682,0.0504918,46299.0,46298.0,2.92549065]
[1641345319881,0.07264347,46299.0,46298.0,2.94849065]
[1641345320082,0.09479514,46299.0,46298.0,2.94849065]
[1641345321685,0.09479514,46299.0,46298.0,2.92549065]
[1641345321933,0.09479514,46299.0,46298.0,2.94749065]
[1641345325034,0.09479514,46299.0,46298.0,2.92549065]
[1641345325877,0.09479514,46299.0,46298.0,2.94649065]
[1641345326980,0.0501,46300.0,46299.0,1.7549]
[1641345327178,0.0501,46300.0,46299.0,2.110565]
[1641345327579,0.01237271,46311.0,46300.0,0.0001]
[1641345327779,0.01237271,46311.0,46304.0,0.10800727]
[1641345327980,0.01237271,46311.0,46307.0,0.24070071]
[1641345328179,0.054001,46316.0,46309.0,1.84028193]
[1641345328382,0.09022696,46318.0,46309.0,2.19594693]
[1641345328579,0.0484,46318.0,46309.0,2.19594693]
[1641345328780,0.08557362,46318.0,46309.0,2.19594693]
[1641345329634,0.08557362,46318.0,46309.0,1.785665]
[1641345329832,0.00043117,46310.0,46309.0,1.798665]
[1641345330933,0.00043117,46310.0,46309.0,2.178665]
[1641345331132,0.0001,46310.0,46309.0,2.165665]
[1641345331332,0.0001,46310.0,46309.0,2.16693704]
[1641345331932,0.0001,46310.0,46309.0,2.18593704]
[1641345332933,0.00116751,46312.0,46309.0,2.18593704]
[1641345333185,0.00116751,46312.0,46311.0,0.41095074]
[1641345333186,7.51e-06,46312.0,46311.0,0.41095074]
[1641345333381,7.51e-06,46312.0,46311.0,1.84392313]
[1641345333581,7.51e-06,46312.0,46311.0,1.06208313]
[1641345333781,7.51e-06,46312.0,46311.0,1.07808313]
[1641345334685,7.51e-06,46312.0,46311.0,1.00462313]
[1641345335082,7.51e-06,46312.0,46311.0,1.2425817]
[1641345335684,7.51e-06,46312.0,46311.0,1.5562696]
[1641345335882,7.51e-06,46312.0,46311.0,1.6092696]
[1641345337023,7.51e-06,46312.0,46311.0,1.8092696]
[1641345337228,7.51e-06,46312.0,46311.0,3.0626606]
[1641345337424,0.00263834,46313.0,46312.0,0.00127198]
[1641345337623,0.0001,46320.0,46312.0,0.63629529]
[1641345337923,0.0001,46320.0,46317.0,0.05528369]
[1641345338123,0.0001,46320.0,46318.0,0.8985714]
[1641345338622,0.0001,46320.0,46318.0,0.65826739]
[1641345338822,0.0001,46320.0,46318.0,0.71225472]
[1641345339424,0.0001,46320.0,46318.0,0.95398142]
[1641345339623,0.0001,46320.0,46318.0,0.71225472]
[1641345339827,0.0001,46320.0,46318.0,0.73625472]
[1641345340024,0.00141946,46320.0,46318.0,0.73625472]
[1641345340224,0.00141946,46320.0,46319.0,1.76469211]
[1641345340425,0.00141946,46320.0,46319.0,2.12035711]
[1641345341780,0.00141946,46320.0,46319.0,2.14035711]
[1641345342579,0.00141946,46320.0,46319.0,1.825665]
[1641345342981,0.00141946,46320.0,46319.0,1.805665]
[1641345343781,0.00141946,46320.0,46319.0,2.07549075]
[1641345343980,0.05651946,46320.0,46319.0,2.07549075]
[1641345344831,0.05151946,46320.0,46319.0,2.07549075]
[1641345345036,0.05151946,46320.0,46319.0,2.05449075]
[1641345345432,0.05271629,46320.0,46319.0,2.05449075]
[1641345345733,0.05151946,46320.0,46319.0,2.41449075]
[1641345345932,0.05151946,46320.0,46319.0,2.43649075]
[1641345346132,0.0001,46330.0,46327.0,0.52625779]
[1641345346333,0.0001,46330.0,46328.0,0.05398075]
[1641345346732,0.0378838,46330.0,46328.0,0.05398075]
[1641345346932,0.0001,46330.0,46328.0,0.05398075]
[1641345347932,0.0001,46330.0,46328.0,0.05898075]
[1641345349181,0.0001,46330.0,46328.0,0.05398075]
[1641345349880,0.0001,46330.0,46328.0,0.05898075]
[1641345349881,0.054084,46330.0,46328.0,0.05898075]
[1641345350689,0.108072,46333.0,46329.0,0.053986]
[1641345350690,0.00031376,46333.0,46329.0,0.053986]
[1641345350880,0.00031376,46333.0,46328.0,0.005]
[1641345351082,0.00031376,46333.0,46327.0,0.05522539]
[1641345351083,0.053987,46332.0,46327.0,0.05522539]
[1641345351281,0.05433681,46332.0,46329.0,0.10796636]
[1641345351687,0.05433681,46332.0,46330.0,0.053984]
[1641345352733,0.00034981,46332.0,46331.0,1.3773189]
[1641345352931,0.00034981,46332.0,46331.0,1.73300531]
[1641345353830,0.00034981,46333.0,46332.0,1.03]
[1641345354029,0.00034981,46333.0,46332.0,1.62411215]
[1641345355979,0.00034981,46333.0,46332.0,1.63811215]
[1641345356477,0.0005,46340.0,46334.0,0.0539668]
[1641345356677,0.0005,46340.0,46337.0,0.00127323]
[1641345356878,0.0005,46340.0,46337.0,1.32693823]
[1641345357378,0.0005,46340.0,46337.0,0.35693823]
[1641345357580,0.0005,46340.0,46337.0,0.00127323]
[1641345357779,0.0065,46344.0,46339.0,0.16190955]
[1641345358180,0.053971,46342.0,46339.0,0.10793955]
[1641345358778,0.053971,46342.0,46340.0,0.05396959]
[1641345359431,0.060469,46344.0,46341.0,0.16191049]
[1641345360232,0.060469,46344.0,46342.0,0.05396925]
[1641345360834,0.387685,46343.0,46342.0,0.05396925]
[1641345361032,0.58375813,46343.0,46342.0,0.05396925]
[1641345361631,0.487685,46343.0,46342.0,0.05396925]
[1641345362031,0.48821332,46343.0,46342.0,0.05396925]
[1641345362232,0.48321332,46343.0,46342.0,0.05396925]
[1641345362630,0.80166734,46343.0,46342.0,0.05396925]
[1641345365291,0.38321332,46343.0,46342.0,0.05396925]
[1641345366396,0.00026416,46343.0,46342.0,0.0552164]
[1641345367833,0.00026416,46343.0,46342.0,0.3642164]
[1641345369235,0.00026416,46343.0,46342.0,0.0552164]
[1641345369836,0.00026416,46343.0,46342.0,0.90656131]
[1641345370038,0.00818586,46345.0,46342.0,0.92028131]
[1641345370341,0.00929645,46345.0,46344.0,0.00121116]
[1641345370586,0.00929645,46345.0,46344.0,2.09872116]
[1641345370587,0.00429645,46345.0,46344.0,2.09872116]
[1641345370785,0.0002,46348.0,46345.0,1.55422475]
[1641345370990,0.00125843,46346.0,46345.0,1.55543257]
[1641345371186,0.0002,46348.0,46345.0,2.24085257]
[1641345371385,0.0002,46348.0,46346.0,0.40937486]
[1641345371599,0.0002,46348.0,46346.0,0.46333186]
[1641345371984,0.0002,46348.0,46346.0,0.49733186]
[1641345372387,0.0004,46350.0,46347.0,2.1052448]
[1641345372588,0.0004,46350.0,46348.0,0.51728719]
[1641345372788,0.0002,46352.0,46348.0,0.51728719]
[1641345372991,0.156312,46358.0,46356.0,0.26987879]
[1641345373188,0.107915,46357.0,46356.0,0.26987879]
[1641345373490,0.157915,46357.0,46356.0,0.26987879]
[1641345374187,0.492502,46357.0,46356.0,0.26987879]
[1641345374438,0.492502,46357.0,46356.0,0.26487879]
[1641345374639,0.592502,46357.0,46356.0,0.26487879]
[1641345375240,0.538542,46357.0,46356.0,0.26487879]
[1641345375640,0.203955,46357.0,46356.0,0.26487879]
[1641345375940,0.103955,46357.0,46356.0,0.26487879]
[1641345376144,0.053955,46357.0,46356.0,0.26487879]
[1641345376341,0.05515099,46357.0,46356.0,0.26487879]
[1641345376941,0.04015099,46357.0,46356.0,0.26487879]
[1641345378084,0.03015099,46357.0,46356.0,0.26487879]
[1641345379584,0.0555043,46359.0,46356.0,0.26487879]
[1641345379784,0.107914,46358.0,46356.0,0.26487879]
[1641345379982,0.157914,46358.0,46356.0,0.26487879]
[1641345380383,0.053953,46357.0,46356.0,0.26487879]
[1641345381189,0.51669442,46357.0,46355.0,0.10791374]
[1641345381394,0.56669442,46357.0,46355.0,0.05395685]
[1641345381584,0.03778385,46356.0,46350.0,8.43793243]
[1641345381832,0.053969,46354.0,46350.0,8.43793243]
[1641345382034,0.0484,46353.0,46350.0,8.33]
[1641345382237,0.26736463,46351.0,46350.0,8.33]
[1641345382438,0.36576463,46351.0,46350.0,8.33]
[1641345382638,0.51576463,46351.0,46350.0,8.33]
[1641345383237,0.51598753,46351.0,46350.0,8.33]
[1641345383842,0.52698753,46351.0,46350.0,8.33]
[1641345385140,0.51598753,46351.0,46350.0,8.33]
[1641345385880,0.52698753,46351.0,46350.0,8.33]
[1641345387080,0.51598753,46351.0,46350.0,8.33]
[1641345387981,0.52798753,46351.0,46350.0,8.33]
[1641345389182,0.51598753,46351.0,46350.0,8.33]
[1641345389434,0.2486229,46351.0,46350.0,8.33]
[1641345389634,0.1486229,46351.0,46350.0,8.33]
[1641345389835,0.1636229,46351.0,46350.0,8.33]
[1641345390240,0.0636229,46351.0,46350.0,8.33]
[1641345390439,0.0636229,46351.0,46350.0,8.61070253]
[1641345390639,0.0636229,46351.0,46350.0,8.61195343]
[1641345391038,0.0152229,46351.0,46350.0,8.61195343]
[1641345391238,0.0002229,46351.0,46350.0,8.61195343]
[1641345391839,0.0232229,46351.0,46350.0,8.61695343]
[1641345393189,0.0002229,46351.0,46350.0,8.61195343]
[1641345393991,0.0002229,46351.0,46350.0,8.63295343]
[1641345394893,0.0486229,46351.0,46350.0,8.63295343]
[1641345395092,0.0486229,46351.0,46350.0,8.61195343]
[1641345395895,0.0786229,46351.0,46350.0,8.62095343]
[1641345396095,0.0786229,46351.0,46350.0,8.3402509]
[1641345396295,0.0786229,46351.0,46350.0,8.339]
[1641345396700,0.1325929,46351.0,46350.0,8.339]
[1641345396948,0.1325929,46351.0,46350.0,8.32773214]
[1641345397149,0.1025929,46351.0,46350.0,8.31873214]
[1641345397547,0.1525929,46351.0,46350.0,8.31873214]
[1641345397949,0.1145929,46351.0,46350.0,8.31873214]
[1641345398752,0.1145929,46351.0,46350.0,8.31373214]
[1641345399150,0.1025929,46351.0,46350.0,8.31373214]
[1641345399948,0.1485929,46351.0,46350.0,8.31573214]
[1641345400584,0.1985929,46351.0,46350.0,8.31573214]
[1641345401086,0.1485929,46351.0,46350.0,8.31573214]
[1641345401485,0.1025929,46351.0,46350.0,8.31373214]
[1641345401889,0.0561929,46351.0,46350.0,8.31973214]
[1641345402085,0.0561929,46351.0,46350.0,8.3209616]
[1641345402486,0.0022229,46351.0,46350.0,8.3209616]
[1641345403086,0.0022229,46351.0,46350.0,8.3149616]
[1641345403286,0.0002229,46351.0,46350.0,8.3149616]
[1641345403486,0.1025889,46351.0,46350.0,8.31373214]
[1641345403887,0.1025889,46351.0,46350.0,8.32673214]
[1641345405136,0.1025889,46351.0,46350.0,8.31373214]
[1641345405937,0.1285889,46351.0,46350.0,8.31373214]
[1641345407145,0.1025889,46351.0,46350.0,8.31373214]
[1641345407939,0.1305889,46351.0,46350.0,8.31373214]
[1641345409183,0.1025889,46351.0,46350.0,8.31373214]
[1641345409587,0.97820114,46351.0,46350.0,8.31373214]
[1641345409987,1.10120114,46351.0,46350.0,8.31373214]
[1641345410489,1.66136575,46351.0,46350.0,8.31373214]
[1641345410684,1.66136575,46351.0,46350.0,8.28674332]
[1641345411086,1.63836575,46351.0,46350.0,8.28674332]
[1641345412033,2.00354975,46351.0,46350.0,8.28674332]
[1641345413136,1.99154975,46351.0,46350.0,8.28674332]
[1641345413536,1.99154975,46351.0,46350.0,7.85490132]
[1641345413935,2.00554975,46351.0,46350.0,7.85490132]
[1641345414136,2.00554975,46351.0,46350.0,7.42305732]
[1641345414738,2.00554975,46351.0,46350.0,6.99120932]
[1641345415045,2.11424975,46351.0,46350.0,6.99120932]
[1641345415238,2.11424975,46351.0,46350.0,6.55935732]
[1641345415681,2.11424975,46351.0,46350.0,6.12750832]
[1641345415883,2.10024975,46351.0,46350.0,6.12750832]
[1641345416082,2.11124975,46351.0,46350.0,6.12750832]
[1641345417286,2.10024975,46351.0,46350.0,6.12750832]
[1641345417885,2.10024975,46351.0,46350.0,5.69566332]
[1641345418085,2.11224975,46351.0,46350.0,5.69566332]
[1641345418484,2.11224975,46351.0,46350.0,5.26380532]
[1641345419086,2.11224975,46351.0,46350.0,4.83195232]
[1641345419942,2.11124975,46351.0,46350.0,4.83195232]
[1641345420142,3.26224975,46351.0,46350.0,4.40009532]
[1641345420349,3.59683675,46351.0,46350.0,4.40009532]
[1641345420741,3.59683675,46351.0,46350.0,3.96823332]
[1641345420943,4.19862543,46351.0,46350.0,3.96823332]
[1641345421145,3.82506543,46351.0,46350.0,3.96823332]
[1641345421343,4.38532624,46351.0,46350.0,3.10441332]
[1641345421545,5.05437521,46351.0,46350.0,3.10441332]
[1641345421742,5.05437521,46351.0,46350.0,2.64181436]
[1641345421943,4.39637521,46351.0,46350.0,2.64181436]
[1641345422145,4.39760264,46351.0,46350.0,2.64181436]
[1641345422343,4.39760264,46351.0,46350.0,2.20992736]
[1641345422344,3.19016264,46351.0,46350.0,2.20992736]
[1641345422545,3.11711315,46351.0,46350.0,2.20992736]
[1641345423083,2.94806418,46351.0,46350.0,1.77806836]
[1641345423283,2.93606418,46351.0,46350.0,1.77806836]
[1641345424085,2.94706418,46351.0,46350.0,1.77806836]
[1641345425186,2.93606418,46351.0,46350.0,1.77806836]
[1641345425988,4.10606348,46351.0,46350.0,1.77806836]
[1641345426588,4.10606348,46351.0,46350.0,1.34620036]
[1641345427235,4.09506348,46351.0,46350.0,0.91433236]
[1641345428041,4.16996348,46351.0,46350.0,0.48246436]
[1641345428235,4.17120064,46351.0,46350.0,0.48246436]
[1641345428435,4.17120064,46351.0,46350.0,0.05057436]
[1641345428936,4.17120064,46351.0,46330.0,1.1281]
[1641345428937,0.161964,46342.0,46330.0,0.0047]
[1641345429136,0.32884792,46331.0,46330.0,0.0047]
[1641345429337,0.37724792,46331.0,46329.0,0.01234062]
[1641345429735,0.33050526,46330.0,46329.0,0.06633071]
[1641345429942,0.69890526,46330.0,46329.0,0.06633071]
[1641345430137,0.84866749,46330.0,46329.0,0.10033071]
[1641345430337,0.84866749,46330.0,46329.0,0.08799009]
[1641345430593,0.84866749,46330.0,46329.0,0.034]
[1641345431189,0.84866749,46330.0,46327.0,0.05400033]
[1641345431391,0.43444727,46329.0,46327.0,0.05400033]
[1641345431587,0.0484,46328.0,46327.0,0.05400033]
[1641345432788,0.382987,46328.0,46327.0,0.05400033]
[1641345432987,0.482987,46328.0,46327.0,0.05400033]
[1641345433989,0.490987,46328.0,46327.0,0.05400033]
[1641345434848,0.49119043,46328.0,46327.0,0.05400033]
[1641345435348,0.48319043,46328.0,46327.0,0.05400033]
[1641345435549,0.38319043,46328.0,46327.0,0.05400033]
[1641345436149,0.39319043,46328.0,46327.0,0.05400033]
[1641345437453,0.38319043,46328.0,46327.0,0.05400033]
[1641345438078,0.39319043,46328.0,46327.0,0.05400033]
[1641345439281,0.38319043,46328.0,46327.0,0.05400033]
[1641345440081,0.49319043,46328.0,46327.0,0.05400033]
[1641345440886,0.84319043,46328.0,46323.0,0.12034087]
[1641345441083,0.054001,46327.0,46323.0,0.12034087]
[1641345441290,0.054002,46325.0,46323.0,0.12034087]
[1641345441486,0.0484,46324.0,46323.0,0.12034087]
[1641345442142,0.0564,46324.0,46323.0,0.12034087]
[1641345442340,0.0564,46324.0,46323.0,0.10799906]
[1641345443342,0.0484,46324.0,46323.0,0.10799906]
[1641345443943,0.0484,46324.0,46323.0,0.09673543]
[1641345444143,0.0564,46324.0,46323.0,0.09673543]
[1641345445345,0.04860004,46324.0,46323.0,0.09673543]
[1641345445982,0.05660004,46324.0,46323.0,0.09673543]
[1641345447184,0.04860004,46324.0,46323.0,0.09673543]
[1641345447586,0.04982782,46324.0,46323.0,0.09673543]
[1641345447987,0.05882782,46324.0,46323.0,0.09673543]
[1641345449432,0.04982782,46324.0,46323.0,0.09673543]
[1641345450035,0.05882782,46324.0,46323.0,0.09673543]
[1641345451840,0.04982782,46324.0,46323.0,0.09673543]
[1641345452139,0.05982782,46324.0,46323.0,0.09673543]
[1641345453386,0.04982782,46324.0,46323.0,0.09673543]
[1641345453989,0.05982782,46324.0,46323.0,0.09673543]
[1641345454387,0.32272917,46324.0,46323.0,0.09673543]
[1641345455191,0.42272917,46324.0,46323.0,0.09673543]
[1641345455391,0.41272917,46324.0,46323.0,0.09673543]
[1641345455691,0.41272917,46324.0,46320.0,0.0046]
[1641345455692,0.41272917,46324.0,46321.0,0.05400753]
[1641345455990,0.054009,46323.0,46321.0,0.05400753]
[1641345456190,0.382987,46322.0,46321.0,0.05400753]
[1641345456593,0.482987,46322.0,46321.0,0.05400753]
[1641345458036,0.492987,46322.0,46321.0,0.05400753]
[1641345459340,0.482987,46322.0,46321.0,0.05400753]
[1641345460138,0.492987,46322.0,46321.0,0.05400753]
[1641345460784,0.73608807,46322.0,46321.0,0.05400753]
[1641345460984,0.392987,46322.0,46321.0,0.05400753]
[1641345461186,0.0584,46322.0,46321.0,0.05400753]
[1641345461887,0.0484,46322.0,46321.0,0.05400753]
[1641345462082,0.0574,46322.0,46321.0,0.05400753]
[1641345463485,0.0484,46322.0,46321.0,0.05400753]
[1641345463688,0.00142782,46324.0,46321.0,1.8713489]
[1641345463886,0.00142782,46324.0,46322.0,0.10797813]
[1641345464086,0.00142782,46324.0,46323.0,1.27]
[1641345464542,0.00142782,46324.0,46322.0,0.10797813]
[1641345464737,0.04976193,46324.0,46322.0,0.10797813]
[1641345464938,0.04976193,46324.0,46322.0,0.16196813]
[1641345465538,0.04976193,46324.0,46322.0,0.10797813]
[1641345466139,0.05876193,46324.0,46322.0,0.15097813]
[1641345466339,0.11275593,46324.0,46322.0,0.15097813]
[1641345466540,0.16275593,46324.0,46322.0,0.15097813]
[1641345467343,0.15375593,46324.0,46322.0,0.10797813]
[1641345468087,0.16175593,46324.0,46322.0,0.14697813]
[1641345469288,0.16175593,46324.0,46322.0,0.10797813]
[1641345469289,0.15375593,46324.0,46322.0,0.10797813]
[1641345470088,0.15975593,46324.0,46322.0,0.14797813]
[1641345470289,0.00742782,46324.0,46323.0,2.12176504]
[1641345470491,0.04950335,46325.0,46323.0,2.12176504]
[1641345470492,0.00110335,46325.0,46324.0,1.64]
[1641345470689,0.5,46334.0,46328.0,0.10796289]
[1641345470894,0.20004,46335.0,46334.0,0.00121825]
[1641345471091,0.01234202,46336.0,46334.0,1.26663825]
[1641345471292,0.01234202,46336.0,46334.0,0.29798086]
[1641345471691,0.5,46335.0,46334.0,0.29798086]
[1641345471933,0.06632102,46336.0,46334.0,0.35195701]
[1641345472338,0.053979,46336.0,46334.0,0.35195701]
[1641345472735,0.053978,46338.0,46334.0,0.35195701]
[1641345472935,0.05,46339.0,46334.0,0.29798086]
[1641345473135,0.00119649,46338.0,46334.0,0.29798086]
[1641345473334,0.00119649,46338.0,46334.0,0.62355312]
[1641345473535,0.00119649,46338.0,46336.0,0.05397871]
[1641345473733,0.10916349,46338.0,46336.0,0.05397871]
[1641345473934,0.15916349,46338.0,46336.0,0.05397871]
[1641345474335,0.053979,46337.0,46336.0,0.05397871]
[1641345480157,0.053979,46337.0,46336.0,0.05997871]
[1641345481354,0.053979,46337.0,46336.0,0.05397871]
[1641345481954,0.05417186,46337.0,46336.0,0.05397871]
[1641345483092,0.00019286,46337.0,46336.0,0.05397871]
[1641345484594,0.00019286,46337.0,46336.0,0.46397871]
[1641345487136,0.00019286,46337.0,46336.0,0.05397871]
[1641345492194,0.04859286,46337.0,46336.0,0.05397871]
[1641345492593,0.38317986,46337.0,46336.0,0.05397871]
[1641345492995,0.48317986,46337.0,46336.0,0.05397871]
[1641345493695,0.78657589,46337.0,46336.0,0.05397871]
[1641345503540,0.48317986,46337.0,46336.0,0.05397871]
[1641345503746,0.48317986,46337.0,46336.0,0.04271803]
[1641345505442,0.76402728,46337.0,46336.0,0.04271803]
[1641345511352,0.48317986,46337.0,46336.0,0.04271803]
[1641345512850,0.48317986,46337.0,46336.0,0.03771803]
[1641345519042,1.05787986,46337.0,46336.0,0.03771803]
[1641345520239,1.06987986,46337.0,46336.0,0.03771803]
[1641345521488,1.05787986,46337.0,46336.0,0.03771803]
[1641345522394,1.06987986,46337.0,46336.0,0.03771803]
[1641345523493,1.05787986,46337.0,46336.0,0.03771803]
[1641345524195,1.07187986,46337.0,46336.0,0.03771803]
[1641345525841,1.05787986,46337.0,46336.0,0.03771803]
[1641345526042,1.13238597,46337.0,46336.0,0.03771803]
[1641345526244,0.053994,46336.0,46334.0,0.05399304]
[1641345526443,0.732987,46335.0,46334.0,0.05399304]
[1641345526644,0.882987,46335.0,46334.0,0.05399304]
[1641345528287,0.893987,46335.0,46334.0,0.05399304]
[1641345529491,0.882987,46335.0,46334.0,0.05200432]
[1641345530290,0.893987,46335.0,46334.0,0.05200432]
[1641345530893,0.04169789,46333.0,46327.0,0.10799198]
[1641345531091,0.04169789,46333.0,46320.0,1.8654]
[1641345531092,0.9247,46328.0,46320.0,1.8654]
[1641345531390,0.36669355,46319.0,46317.0,0.3015]
[1641345531591,0.0484,46318.0,46315.0,1.14]
[1641345532050,0.054005,46317.0,46316.0,0.10800822]
[1641345532247,0.102405,46317.0,46316.0,0.10800822]
[1641345532847,0.436992,46317.0,46316.0,0.10800822]
[1641345533147,0.15641,46317.0,46316.0,0.10800822]
[1641345534251,0.16441,46317.0,46316.0,0.14500822]
[1641345534654,0.498997,46317.0,46316.0,0.14500822]
[1641345534849,0.498997,46317.0,46316.0,0.13500822]
[1641345535450,0.490997,46317.0,46316.0,0.09800822]
[1641345535887,0.436992,46317.0,46316.0,0.09800822]
[1641345536288,0.436992,46317.0,46316.0,0.13700822]
[1641345536289,0.443992,46317.0,46316.0,0.13700822]
[1641345536689,0.109405,46317.0,46316.0,0.79700822]
[1641345537390,0.0554,46317.0,46316.0,0.79700822]
[1641345537589,0.0554,46317.0,46316.0,0.75800822]
[1641345537590,0.0484,46317.0,46316.0,0.75800822]
[1641345538393,0.0554,46317.0,46316.0,0.80300822]
[1641345539193,0.007,46317.0,46316.0,0.80300822]
[1641345539445,0.007,46317.0,46316.0,1.15842822]
[1641345539644,0.007,46317.0,46316.0,2.33842822]
[1641345540245,0.00105773,46322.0,46318.0,0.16196888]
[1641345540545,0.00105773,46322.0,46321.0,1.16111699]
[1641345541146,0.00105773,46322.0,46321.0,1.51653699]